Cogmind - Beta 17 @@@ ROGUE MODE // 2026.08.02 @ 16:57:26 Player: 4R-ZE3 Result: Self-destructed Performance ------------- Evolutions (5) 2500 Regions Visited (7) 1400 Robots Destroyed (89) 445 Value Destroyed (3724) 3724 Prototype IDs (24) 480 Alien Tech Used (0) 0 Bonus (0) 0 TOTAL SCORE: 8549 Bonus ------- None Cogmind --------- Core Integrity 228/1000 Matter 275/300 Energy 93/100 System Corruption 6% Temperature Cool (9) Movement Walking (120) Location -5/Factory Parts ------- > --- POWER (1) -------- (None) > --- PROPULSION (5) --- Carbon-fiber Leg VTOL Module > --- UTILITY (7) ------ Advanced Signal Interpreter > --- WEAPON (4) ------- Plasma Sword > --- INVENTORY (5) ---- Deuterium Engine Hybrid Fission Core Hybrid Fission Core Hybrid Fission Core Cryofiber Web Peak State ------------ > --- POWER ------------ Light Fission Core > --- PROPULSION ------- Medium Treads Hovering Antigrav Exoskeleton > --- UTILITY ---------- Armored Scrap Engine Large Storage Unit Trap Scanner Improved Sensor Array Advanced Signal Interpreter Cloaking Device > --- WEAPON ----------- Hvy. Thermic Construct/C Kinetic Gauss Construct/G Scythe > --- INVENTORY -------- Deuterium Engine Hybrid Fission Core Hybrid Fission Core Hybrid Fission Core Hybrid Fission Core Hybrid Fission Core Cryofiber Web Improved Heat Sink Improved Cooling System Target Analyzer Hacking Suite [Rating: 73] Favorites ----------- Power Heavy Ion Engine Engine Heavy Ion Engine Power Core Light Fission Core Propulsion Light Treads Treads Light Treads Leg Flexi-carbon Leg Wheel Wheel Hover Unit Constructs Flight Unit VTOL Module Utility Large Storage Unit Device Armored Scrap Engine Storage Large Storage Unit Processor Improved Targeting Computer Hackware Hacking Suite Protection Medium Armor Plating Weapon Heavy Assault Rifle Energy Gun Heavy Particle Gun Energy Cannon Constructs Ballistic Gun Heavy Assault Rifle Impact Weapon Hammer Slashing Weapon Scythe Build | -11 -10 -10 -8 -8 -8 -6 -5 ------- Run | Yrd Mat Sub Mat Sto Rec Fac Fac Slots Evolved 10 | . . . 4 . . 4 2 Power . | . . . . . . . . Propulsion 3 | . . . 1 . . 1 1 Utility 5 | . . . 2 . . 2 1 Weapon 2 | . . . 1 . . 1 . Parts Attached 86 | 6 10 3 21 15 11 10 10 Power 7 | 1 2 . 2 1 . 1 . Engine 5 | 1 1 . 2 1 . . . Core 2 | . 1 . . . . 1 . Reactor . | . . . . . . . . Propulsion 30 | 2 1 1 5 6 6 4 5 Treads 21 | 2 1 1 5 6 3 2 1 Leg 2 | . . . . . . 1 1 Wheel 4 | . . . . . 3 1 . Hover . | . . . . . . . . Flight 3 | . . . . . . . 3 Utility 27 | 1 4 1 5 5 2 5 4 Device 9 | . 1 . 1 1 1 3 2 Storage 4 | 1 2 . . 1 . . . Processor 6 | . . 1 2 . . 1 2 Hackware 1 | . . . . . . 1 . Protection 7 | . 1 . 2 3 1 . . Artifact . | . . . . . . . . Weapon 22 | 2 3 1 9 3 3 . 1 Energy Gun 7 | 1 1 1 1 . 3 . . Energy Cannon . | . . . . . . . . Ballistic Gun 12 | 1 1 . 7 3 . . . Ballistic Cannon . | . . . . . . . . Launcher . | . . . . . . . . Special Weapon . | . . . . . . . . Impact Weapon 1 | . 1 . . . . . . Slashing Weapon 2 | . . . 1 . . . 1 Piercing Weapon . | . . . . . . . . Special Melee Weapon . | . . . . . . . . Unidentified Prototypes 4 | . . . 1 1 1 . 1 Parts Lost 43 | . 1 2 9 2 . 9 20 Power 5 | . 1 . 1 . . 1 2 Propulsion 12 | . . . 1 . . 4 7 Utility 11 | . . 1 3 1 . 1 5 Weapon 15 | . . 1 4 1 . 3 6 Highest Loss Streak 9 | . 1 2 3 1 . 9 6 To Critical Strikes 2 | . . 1 1 . . . . Average Backups 10 | . 7 11 14 14 8 7 10 Power 1 | . 1 1 . . . 2 5 Propulsion 3 | . 1 3 6 6 3 1 . Utility 2 | . 1 1 . 2 1 3 4 Weapon 3 | . 3 5 7 6 3 . . Tool/Special . | . . . . . . . . Unused Backups 23 | . . . 1 4 6 1 11 Power 7 | . . . . . 1 . 6 Propulsion 4 | . . . 1 1 2 . . Utility 7 | . . . . 1 . 1 5 Weapon 5 | . . . . 2 3 . . Tool/Special . | . . . . . . . . Average Slot Usage (%) 85 | . 99 97 98 99 81 67 63 Engine 5 | . 9 . 5 9 9 1 . Core 3 | . 4 14 3 . . 3 4 Treads 18 | . 28 28 26 26 15 9 3 Wheel 3 | . . . . . 5 11 3 Device 9 | . 13 3 4 . 7 14 17 Storage 8 | . 14 14 9 9 9 4 4 Processor 6 | . . 8 9 18 3 2 5 Protection 4 | . . . 11 8 8 1 . Energy Gun 5 | . 6 10 9 . 10 5 1 Ballistic Gun 13 | . 21 13 16 24 9 4 5 Slashing Weapon 2 | . . . . 1 3 3 4 Peak Build Rating 73 | 6 10 10 33 34 45 67 73 Average Rating 34 | 4 7 9 26 30 38 49 61 On Entrance 24 | . 6 10 10 33 26 41 67 Avg Prop Armor Cover (%) 7 | . . . . . 8 7 6 Naked Turns . | . . . . . . . . Heaviest Build 49 | 14 30 30 43 47 46 49 44 Greatest Support 65 | 40 40 40 65 63 60 60 56 Greatest Overweight (x) 3 | . . . . 1 3 1 3 Average Overweight (x) . | . . . . . . . 1 Largest Inventory Capacity 15 | 8 15 15 15 15 15 15 15 Average Capacity 13 | 6 10 15 15 15 15 12 14 Most Carried 15 | 1 10 14 15 15 15 13 14 Average Carried 10 | . 7 11 14 14 8 7 10 Final Capacity 15 | 8 15 15 15 15 15 15 5 Final Carried 15 | 1 10 13 14 15 6 13 5 Scrap Engine Consumption 71 | . . . . . 23 28 20 Constructs Created 11 | . . . . . 3 5 3 Constructs Modified 8 | . . . . . 3 . 5 Class Distribution -------------------- 38% | Mutant 14% | Scavenger-Gunner 14% | Tank 9% | Gunner 8% | Scavenger-Mutant 8% | Assassin 3% | Scavenger-Assassin Dominant Class ---------------- Mutant | -10/Materials Mutant | -10/Subcaves Tank | -8/Materials Scavenger-Gunner | -8/Storage Mutant | -8/Recycling Scavenger-Mutant | -6/Factory Assassin | -5/Factory Resources | -11 -10 -10 -8 -8 -8 -6 -5 ----------- Run | Yrd Mat Sub Mat Sto Rec Fac Fac Matter Collected 2609 | 80 416 72 632 827 213 143 226 Remotely . | . . . . . . . . Salvage Created 4186 | . 429 66 1145 1342 193 403 608 Parts 243 | . 32 7 65 77 9 19 34 Haulers Intercepted 4 | . 1 . 2 . . 1 . Recyclers Shooed 1 | . . . . . . . 1 Parts Field Recycled . | . . . . . . . . Retrieved Matter . | . . . . . . . . Parts Self-Destructed 4 | . . 4 . . . . . Prevented . | . . . . . . . . Parts Restored . | . . . . . . . . Kills | -11 -10 -10 -8 -8 -8 -6 -5 ------- Run | Yrd Mat Sub Mat Sto Rec Fac Fac Combat Hostiles Destroyed 82 | . 11 2 24 24 4 5 12 Melee 5 | . . . . . . 1 4 Guns 72 | . 11 2 24 24 4 4 3 Cannons 4 | . . . . . . . 4 AOE 1 | . . . . . . . 1 Classes Destroyed 11 | . 3 1 2 3 1 1 . Worker 1 | . . . . 1 . . . Hauler 4 | . 1 . 2 . . 1 . Recycler 1 | . . . . 1 . . . Operator 1 | . . . . 1 . . . Swarmer 11 | . 3 1 4 . . . 3 Grunt 35 | . 8 . 12 13 . 1 1 Duelist 2 | . . . 1 . . 1 . Sentry 18 | . . 1 6 10 1 . . Hunter 7 | . . . 1 1 . 2 3 Programmer 6 | . . . . . . 1 5 Subdweller 3 | . . . . . 3 . . Best Kill Streak 9 | . 2 2 9 5 1 2 3 Combat Bots Only 8 | . 2 2 8 5 1 2 3 Max Kills in Single Turn 2 | . 1 1 2 1 1 1 1 Gunslinging 1 | . . . 1 . . . . Exploded 1 | . . . . . . . 1 Melee 1 | . . . . . . 1 1 Uniques/NPCs Destroyed . | . . . . . . . . Combat | -11 -10 -10 -8 -8 -8 -6 -5 -------- Run | Yrd Mat Sub Mat Sto Rec Fac Fac Hostile Shots Fired 730 | . 54 17 157 129 15 136 222 Missed 166 | . 13 1 42 28 5 24 53 Hits 564 | . 41 16 115 101 10 112 169 Melee 3 | . . . 2 . . 1 . Projectile 561 | . 41 16 113 101 10 111 169 Critical Strikes 17 | . . 1 6 4 1 1 4 Actively Blocked 1 | . . . 1 . . . . Damage Taken 8943 | . 472 185 1722 1493 213 1943 2915 Core 1543 | . 56 17 170 154 . 374 772 Absorbed by Shields . | . . . . . . . . Redirected to Shielding 165 | . . . 157 8 . . . Ignored by Resistances 74 | . . . 74 . . . . Regen/Repaired (Parts) 1052 | . . . . 403 45 100 504 Core Remaining (%) 66 | 100 . 70 . . 41 56 . Volleys Fired 249 | . 36 9 62 59 6 33 44 Largest 3 | . 2 2 3 3 3 3 3 Hottest 162 | . 70 60 106 106 150 162 111 Shots Fired 587 | . 72 15 185 177 18 53 67 Gun 556 | . 72 15 185 177 18 53 36 Cannon 31 | . . . . . . . 31 Launcher . | . . . . . . . . Special . | . . . . . . . . Kinetic 418 | . 51 9 124 172 8 33 21 Thermal 143 | . 21 6 61 5 10 20 20 Explosive . | . . . . . . . . Electromagnetic 26 | . . . . . . . 26 Robot Hit Streak 49 | . 9 11 20 41 39 49 15 Robot Miss Streak 8 | . 2 1 8 1 . 4 4 Penetration Max 1 | . . . 1 1 . 1 1 Secondary Targets 8 | . 1 . 6 . . 1 . Max Gunslinging Chain 2 | . 1 . 2 . . 1 . Shots Hit Robots 474 | . 48 14 129 151 15 50 67 Core Hits 183 | . 23 3 58 49 7 20 23 Critical Kills 2 | . . . . 2 . . . Critical Parts Destroyed 4 | . . . . 2 . . 2 Critical Strikes 15 | . 2 . 1 4 1 2 5 Burn 5 | . 2 . 1 . 1 1 . Destroy 6 | . . . . 4 . . 2 Sever 4 | . . . . . . 1 3 Melee Attacks 70 | . 3 1 1 5 7 17 36 Impact 4 | . 3 1 . . . . . Slashing 66 | . . . 1 5 7 17 36 Piercing . | . . . . . . . . Sneak Attacks 2 | . . . . . . 1 1 Combat Hostiles . | . . . . . . . . Follow-up Attacks . | . . . . . . . . Damage Inflicted 9059 | . 625 174 2160 2709 298 1158 1935 Guns 7105 | . 625 174 2160 2649 298 659 540 Cannons 534 | . . . . . . . 534 Explosions 62 | . . . . . . . 62 Melee 1345 | . . . . 60 . 486 799 Ramming 13 | . . . . . . 13 . Kinetic 5305 | . 455 110 1288 2568 105 373 406 Thermal 2238 | . 170 64 872 81 193 286 572 Explosive . | . . . . . . . . Electromagnetic 158 | . . . . . . . 158 Impact . | . . . . . . . . Slashing 1345 | . . . . 60 . 486 799 Piercing . | . . . . . . . . Highest Corruption 6 | . . . . . . 2 6 Average Corruption 3 | . . . . . . 2 4 Corruption Purged . | . . . . . . . . Corruption Blocked . | . . . . . . . . Effects 24 | . . . . . . 5 19 Message Errors 7 | . . . . . . 1 6 Matter Fused 7 | . . . . . . 2 5 Heat Flow Errors 1 | . . . . . . 1 . Energy Discharges 3 | . . . . . . . 3 Data Loss (minor) 6 | . . . . . . 1 5 Overload Shots . | . . . . . . . . Overflow Damage 158 | . . . . . . 53 105 Projectiles . | . . . . . . . . Explosions . | . . . . . . . . Melee 158 | . . . . . . 53 105 Knockbacks . | . . . . . . . . Impact . | . . . . . . . . Kinetic . | . . . . . . . . Secondary . | . . . . . . . . Self-Inflicted Damage . | . . . . . . . . Shots . | . . . . . . . . Rammed 14 | . . . . . . 14 . Targets Rammed 14 | . . . . . . 14 . Kicked . | . . . . . . . . Crushed . | . . . . . . . . Highest Temperature 365 | . 87 . 365 198 146 342 82 Average Temperature 66 | . 34 . 98 52 54 111 24 Received Heat Transfer 1923 | . 204 45 684 657 42 36 255 Effects 2 | . . . . . . 2 . Shutdowns 1 | . . . . . . 1 . Damage (minor) 1 | . . . . . . 1 . Siege Activations . | . . . . . . . . Martial Activations . | . . . . . . . . Shielding Activations . | . . . . . . . . Robots Disrupted . | . . . . . . . . Combat Hostiles . | . . . . . . . . Robots Corrupted . | . . . . . . . . Combat Hostiles . | . . . . . . . . Parts Fried . | . . . . . . . . Impact Corruptions . | . . . . . . . . Robots Melted . | . . . . . . . . Combat Hostiles . | . . . . . . . . Parts Melted 7 | . . . 3 . 1 3 . Heat Transferred 3742 | . 582 150 1776 148 407 629 50 Parts Sabotaged . | . . . . . . . . Parts Stolen . | . . . . . . . . Parts Stripped . | . . . . . . . . Power Chain Reactions 1 | . . . . . . . 1 Alert | -11 -10 -10 -8 -8 -8 -6 -5 ------- Run | Yrd Mat Sub Mat Sto Rec Fac Fac Maximum Alert Level 1 | . . . 1 1 . . . Low Security (%) 97 | 100 100 . 97 86 100 100 100 Level 1 2 | . . . 2 13 . . . Level 2 . | . . . . . . . . Level 3 . | . . . . . . . . Level 4 . | . . . . . . . . Level 5 . | . . . . . . . . High Security . | . . . . . . . . Max Security . | . . . . . . . . Peak Influence 218 | . 106 . 213 218 20 69 98 Initial 64 | . . . . 64 18 . . Average 40 | . 35 . 53 123 1 7 10 Influence Increases 2448 | . 336 40 682 739 29 196 426 Destroy 0b10 Robot/C 1580 | . 220 40 480 480 20 100 240 Destroy 0b10 Robot/NC 35 | . 5 . 10 15 . 5 . Destroy Leader 388 | . 42 . 114 150 . 32 50 Successful Hack 136 | . 23 . 46 27 . 14 26 Disable Machine 90 | . 15 . . 30 . 15 30 Destroy Structure 39 | . 1 . 2 7 9 . 20 Partial Spotted 15 | . . . 15 . . . . Lose Combat Pursuer 165 | . 30 . 15 30 . 30 60 Influence Decreases 2364 | . 336 40 529 844 77 196 342 Entered New Map 119 | . . . . 89 30 . . Time Decay 1603 | . 326 40 305 482 47 171 232 Lost Part 239 | . 10 . 74 20 . 25 110 Lost Ally 120 | . . . . 120 . . . Purge Threat 283 | . . . 150 133 . . . Squads Dispatched 14 | . 1 . 4 3 . 3 3 Investigation 4 | . . . 1 2 . . 1 Extermination 4 | . . . . . . 2 2 Reinforcement 5 | . 1 . 2 1 . 1 . Assault . | . . . . . . . . Garrison 1 | . . . 1 . . . . Intercept . | . . . . . . . . Searches Triggered . | . . . . . . . . Construction Impeded . | . . . . . . . . Haulers Reinforced . | . . . . . . . . Active Scanning Responses . | . . . . . . . . Cargo Convoy Interrupts . | . . . . . . . . Stealth | -11 -10 -10 -8 -8 -8 -6 -5 --------- Run | Yrd Mat Sub Mat Sto Rec Fac Fac Distress Signals 14 | . 3 . 4 4 2 . 1 Communications Jammed . | . . . . . . . . Distress Signals . | . . . . . . . . Times Spotted 139 | . 18 2 39 35 5 10 30 Peak Tracking Total 10 | . 4 2 10 5 1 3 7 Tactical Retreats 10 | . 2 . 1 2 1 2 2 Traps | -11 -10 -10 -8 -8 -8 -6 -5 ------- Run | Yrd Mat Sub Mat Sto Rec Fac Fac Traps Triggered 4 | . . . 2 1 . 1 . Indirectly . | . . . . . . . . Trap Hack Attempts . | . . . . . . . . Triggered . | . . . . . . . . Disarmed . | . . . . . . . . Reprogrammed . | . . . . . . . . Reused . | . . . . . . . . Traps Extracted . | . . . . . . . . Installed . | . . . . . . . . Triggered . | . . . . . . . . Machines | -11 -10 -10 -8 -8 -8 -6 -5 ---------- Run | Yrd Mat Sub Mat Sto Rec Fac Fac Machines Disabled 6 | . 1 . . 2 . 1 2 Max in Single Turn 1 | . 1 . . 1 . 1 1 Garrison Access 2 | . . . 1 . . 1 . Machines Repaired . | . . . . . . . . Machines Dismantled . | . . . . . . . . Machines Sabotaged . | . . . . . . . . Overloaded Fab Kills . | . . . . . . . . Hacking | -11 -10 -10 -8 -8 -8 -6 -5 --------- Run | Yrd Mat Sub Mat Sto Rec Fac Fac Machines Accessed 43 | . 7 1 9 10 5 4 7 Terminals 30 | . 5 . 6 9 1 3 6 Fabricators . | . . . . . . . . Repair Stations 1 | . . . . 1 . . . Recycling Units 7 | . 2 . 1 . 3 . 1 Scanalyzers 1 | . . . 1 . . . . Garrison Access 2 | . . . 1 . . 1 . Total Hacks 89 | . 11 2 21 28 8 6 13 Successful 41 | . 6 2 10 12 5 2 4 Failed 48 | . 5 . 11 16 3 4 9 Catastrophic 10 | . 1 . 2 3 2 2 . Database Lockouts . | . . . . . . . . Manual 57 | . 8 . 13 22 1 5 8 Terminals 64 | . 8 . 15 24 1 5 11 Fabricators . | . . . . . . . . Repair Stations 4 | . . . . 4 . . . Recycling Units 10 | . 3 . 1 . 4 . 2 Scanalyzers 3 | . . . 3 . . . . Garrison Access 3 | . . . 2 . . 1 . Terminal Hacks 19 | . 5 2 4 5 3 . . Record 2 | . . 1 . . 1 . . Robot Analysis 4 | . 3 . 1 . . . . Open Door 3 | . . . . 3 . . . Branch Access Points 2 | . . . 1 1 . . . Unreport Threat 2 | . . . 1 1 . . . Zone Layout 3 | . 2 . 1 . . . . Proto ID Catalog 1 | . . 1 . . . . . Release Object 2 | . . . . . 2 . . Fabricator Hacks . | . . . . . . . . Repair Station Hacks 4 | . . . . 4 . . . Scan Component 2 | . . . . 2 . . . Repair 2 | . . . . 2 . . . Recycling Unit Hacks 4 | . 1 . . . 2 . 1 Retrieve Components 4 | . 1 . . . 2 . 1 Scanalyzer 2 | . . . 2 . . . . Retrieve Study 2 | . . . 2 . . . . Garrison Access Hacks 2 | . . . 1 . . 1 . Seal Access 2 | . . . 1 . . 1 . Unauthorized Hacks 10 | . . . 3 3 . 1 3 Terminals 10 | . . . 3 3 . 1 3 Botnet 10 | . . . 3 3 . 1 3 Fabricators . | . . . . . . . . Repair Stations . | . . . . . . . . Recycling Units . | . . . . . . . . Scanalyzers . | . . . . . . . . Garrison Access . | . . . . . . . . Data Cores Recovered 1 | . . . . 1 . . . Used . | . . . . . . . . Hacking Detections 29 | . 4 . 6 6 3 3 7 Full Trace Events 3 | . 1 . . 2 . . . Feedback Events . | . . . . . . . . Feedback Blocked . | . . . . . . . . Robot Schematics Acquired . | . . . . . . . . Robots Built . | . . . . . . . . Authchips . | . . . . . . . . Time . | . . . . . . . . Total Robot Build Rating . | . . . . . . . . Part Schematics Acquired . | . . . . . . . . Parts Built . | . . . . . . . . Authchips . | . . . . . . . . Time . | . . . . . . . . Total Part Build Rating . | . . . . . . . . Part Studies Acquired 2 | . . . 2 . . . . Parts Repaired 2 | . . . . 2 . . . Time 82 | . . . . 82 . . . Parts Recycled . | . . . . . . . . Recycled Matter . | . . . . . . . . Retrieved Matter . | . . . . . . . . Retrieved Components 20 | . 10 . . . 4 . 6 Parts Scanalyzed . | . . . . . . . . Part Schematics Acquired . | . . . . . . . . Parts Damaged . | . . . . . . . . Bothacking | -11 -10 -10 -8 -8 -8 -6 -5 ------------ Run | Yrd Mat Sub Mat Sto Rec Fac Fac Used RIF Installer . | . . . . . . . . Robots Hacked . | . . . . . . . . Non-combat . | . . . . . . . . Combat . | . . . . . . . . Robot Hacks Applied . | . . . . . . . . Relay Couplers Released . | . . . . . . . . Fabnet Peak Effective % . | . . . . . . . . Robots Rewired . | . . . . . . . . Allies Hacked . | . . . . . . . . Hacks Repelled . | . . . . . . . . Allies | -11 -10 -10 -8 -8 -8 -6 -5 -------- Run | Yrd Mat Sub Mat Sto Rec Fac Fac Total Allies . | . . . . . . . . Largest Group . | . . . . . . . . Highest-Rated Group . | . . . . . . . . Highest-Rated Ally . | . . . . . . . . Total Orders 16 | . . . . 16 . . . EXPLORE 16 | . . . . 16 . . . Ally Attacks . | . . . . . . . . Total Damage . | . . . . . . . . Kills . | . . . . . . . . Allies Corrupted . | . . . . . . . . Allies Melted . | . . . . . . . . Intel | -11 -10 -10 -8 -8 -8 -6 -5 ------- Run | Yrd Mat Sub Mat Sto Rec Fac Fac Active Infowar (turns) 2905 | . 1087 82 . . . 749 987 Optics 469 | . . . . . . 439 30 Sensors 955 | . . . . . . . 955 Structural 1169 | . 1087 82 . . . . . Traps 1649 | . . . . . . 749 900 Cloaking 1307 | . . . . . . 584 723 Robot Analysis Total 4 | . 3 . 1 . . . . Derelict Logs Recovered . | . . . . . . . . Drone Launches 16 | . . . . 16 . . . Drone Recoveries 2 | . . . . 2 . . . Exploration | -11 -10 -10 -8 -8 -8 -6 -5 ------------- Run | Yrd Mat Sub Mat Sto Rec Fac Fac Turns Passed 7343 | 63 1151 381 1154 1267 1026 1095 1206 Spaces Moved 3353 | 35 501 215 486 492 356 714 554 Core 20 | 2 . . . . . . 18 Treads 2297 | 33 501 215 486 492 260 174 136 Legs 1 | . . . . . . . 1 Wheels 886 | . . . . . 96 540 250 Hover 108 | . . . . . . . 108 Flight 41 | . . . . . . . 41 Fastest Speed 32 | 50 160 160 155 163 90 90 32 Average Speed 155 | 153 160 160 159 166 215 109 155 Slowest Speed 427 | 160 160 160 166 245 427 240 320 Overloaded Moves . | . . . . . . . . Propulsion Burnouts . | . . . . . . . . Robots Hopped . | . . . . . . . . Potential Cave-ins . | . . . . . . . . Cave-ins Triggered . | . . . . . . . . Exploration Rate (%) 42 | 3 87 21 47 84 61 17 17 Regions Visited 7 Branch Regions 3 Pre-discovered Areas . | . . . . . . . . Known Exits Taken 3 | . . 1 1 1 . . . Unknown Exits Taken 4 | 1 1 . . . 1 1 . Scrap Searched . | . . . . . . . . Spaces Dug 12 | . . . 1 2 7 . 2 Terrain Destroyed 20 | . . . 1 3 7 . 9 Melee 12 | . . . 1 2 7 . 2 Projectile 4 | . . . . 1 . . 3 AOE 4 | . . . . . . . 4 Terrain Rammed . | . . . . . . . . Walls Destroyed . | . . . . . . . . Machines Disabled . | . . . . . . . . Actions | -11 -10 -10 -8 -8 -8 -6 -5 --------- Run | Yrd Mat Sub Mat Sto Rec Fac Fac Total 4873 | 41 772 235 724 801 601 914 785 Wait 930 | . 209 1 124 176 189 96 135 Move 3346 | 34 500 214 485 491 355 713 554 Hop . | . . . . . . . . Pick Up 63 | 1 9 5 15 13 5 14 1 Fast Attach 38 | 6 3 . 5 7 3 8 6 Attach 39 | . 1 2 12 6 9 6 3 Detach 3 | . . . . . 3 . . Swap 36 | . 6 2 9 16 2 . 1 Drop 67 | . 5 1 11 18 22 5 5 Fire 249 | . 36 9 62 59 6 33 44 Melee 70 | . 3 1 1 5 7 17 36 Ram 12 | . . . . . . 12 . Kick . | . . . . . . . . Crush 2 | . . . . . . 2 . Escape Stasis 8 | . . . . . . 8 . Rewire 3 | . . . . 3 . . . Trap . | . . . . . . . . Miscellaneous 7 | . . . . 7 . . . Route ------- -11/Scrapyard -10/Materials (discovered 5 exits: [*Mat x3] / [*Min] / *Sub) -10/Subcaves (discovered 2 exits: *Mat x2) -8/Materials (discovered 3 exits: [*Fac] / *Sto x2) -8/Storage (discovered 2 exits: [*Fac] / *Rec) -8/Recycling -6/Factory -5/Factory History --------- Turn | Location | Event 6 | -11/Scrapyard | Discovered new exit (range 15) 64 | -11/Scrapyard | Entered Materials 301 | -10/Materials | Build established: Mutant 325 | -10/Materials | Discovered new exit (range 13) 419 | -10/Materials | Discovered new exit (range 15) 508 | -10/Materials | Discovered new exit (range 15) 957 | -10/Materials | Discovered new exit (range 7) 1169 | -10/Materials | Discovered new exit (range 9) 1215 | -10/Materials | Entered Subcaves 1292 | -10/Subcaves | Discovered new exit (range 7) 1340 | -10/Subcaves | Shifting Twisted Machinery released Sub. Laser 1341 | -10/Subcaves | Shifting Twisted Machinery released Spk. Treads 1363 | -10/Subcaves | Identified exit to Materials 1498 | -10/Subcaves | Visited 4L-MR0's lab 1533 | -10/Subcaves | Discovered exit to Materials (range 14) 1596 | -10/Subcaves | Entered Materials 1596 | -8/Materials | Evolved 4 slots: Propulsion x1, Utility x2, Weapon x1 1968 | -8/Materials | Discovered new exit (range 11) 1981 | -8/Materials | Garrison activated, responded to threat 2001 | -8/Materials | Build established: Tank 2085 | -8/Materials | Identified exit to Storage 2147 | -8/Materials | Destroyed 8 combat bots 2674 | -8/Materials | Lost 3 parts (1u2w) 2679 | -8/Materials | Destroyed 7 combat bots 2750 | -8/Materials | Entered Storage 2772 | -8/Storage | Identified exit to Recycling 3373 | -8/Storage | Repaired Arm. Treads 3390 | -8/Storage | Build established: Scavenger-Gunner 3459 | -8/Storage | Repaired Gauss Rifle+ 3625 | -8/Storage | Discovered new exit (range 16) 3816 | -8/Storage | Lost 7 allies 3828 | -8/Storage | Core integrity fell below 50% 4011 | -8/Storage | Used back door to open Recycling access 4017 | -8/Storage | Entered Recycling 4185 | -8/Recycling | Entered Scraplab 4194 | -8/Recycling | Found Prototype Device 4207 | -8/Recycling | Identified Scrap Engine 4438 | -8/Recycling | Build established: Mutant 4823 | -8/Recycling | Build established: Tank 4872 | -8/Recycling | Discovered new exit (range 16) 5043 | -8/Recycling | Entered Factory 5043 | -6/Factory | Evolved 4 slots: Propulsion x1, Utility x2, Weapon x1 5460 | -6/Factory | Lost 9 parts (1p4n1u3w) 5627 | -6/Factory | Spotted B-75 Beast 5813 | -6/Factory | Build established: Scavenger-Mutant 6103 | -6/Factory | Discovered new exit (range 4) 6138 | -6/Factory | Entered another Factory area 6138 | -5/Factory | Evolved 2 slots: Propulsion x1, Utility x1 6503 | -5/Factory | Lost 3 parts (2n1w) 6738 | -5/Factory | Build established: Assassin 7069 | -5/Factory | Lost 4 parts (1p1u2w) 7269 | -5/Factory | Core integrity fell below 50% 7312 | -5/Factory | Lost 6 parts (1p3n2w) 7338 | -5/Factory | Build established: Mutant 7344 | -5/Factory | Self-destructed Last Messages --------------- 07276_ VTOL Module destroyed. 07285_ Acquired Prototype Slashing Weapon. 07285_ Identified Plasma Sword. 07288_ S-27 Virus Autogun severed. 07291_ Arm. Scrap Engine consumes Autogun. 07296_ Destroyed VTOL Module. 07301_ S-27 Virus destroyed. 07306_ QJRMSPV|FSR/ZJPW AA%W 07313_ S-27 Virus destroyed. 07314_ Arm. Scrap Engine consumes Autogun. 07314_ Arm. Scrap Engine destroyed. 07314_ Scrap Engine core remains intact and functional. 07315_ Acquired 29 matter. 07317_ Acquired VTOL Module. 07322_ Destroyed Lgt. Angular Momentum Engine. 07326_ System corrupted: Matter fused (-7). 07333_ G-50 Soldier destroyed. 07341_ Acquired Carbon-fiber Leg. 07342_ Scrap Engine destroyed. Map ----- +----------------------------------------------------+ | ?????????????????????????????????????????????????? | | ?????????????????????????????????????????????????? | | ?????????????????????????????????????????????????? | | ?????????????????????????????????????????????????? | | ?????????????????????????????????????????????????? | | ?????????????????????????????????????????????????? | | ?????????????????????????????????????????????????? | | ##???????????????????????????????????????????????? | | #???????????????????????????????????????????????? | | #???????????????????????????????????????????????? | | #???????????????????????????????????????????????? | | #???????????????????????????????????????????????? | | #???????????????????????????????????????????????? | | #???????????????????????????????????????????????? | | #???????????????????????????????????????????????? | | #?????????#?????????????????????????????????????? | | #?????????# ????????????????????????????????????? | | #?????????# ???????????????????????????????????? | | #?????????# ??????????????????????????????????? | | #?????????# #####################?????????????? | | #?????????# # #?????????????? | | #?????????? # #?????????????? | | #?????????# # """"" #?????????????? | | #?????????# """ # % """"" #?????????????? | | #?????????# """ # """ #?????????????? | | #?????????# """ # @[% #?????????????? | | ##?????????# g gg""" #?????????????? | | ???????????# """ # """ #?????????????? | | ???????????# """ # "S / #?????????????? | | ############ """ # """ #?????????????? | | # # "" #?????????????? | | # """ # #?????????????? | | # """ ####+#########?????????????? | | """!! #??????????????????????????? | | # ! * #??????????????????????????? | | # "Y" #??????????????????????????? | | #####+###! """ #??????????????????????????? | | =!*!###########+##??????????????????????????? | | %!!#???????? ??????????????????????????? | | [%**#?????? ????????????????????????? | | != #????# ??????????????????????? | | """"" #????# #?????????????????????? | | """"" #????# #?????????????????????? | | """ #????# #?????????????????????? | | #????# #?????????????????????? | | ##########????# #?????????????????????? | | ??????????????# #?????????????????????? | | ??????????????# #?????????????????????? | | ??????????????# #?????????????????????? | | ??????????????# #?????????????????????? | +----------------------------------------------------+ Best States ------------- Heat Dissipation 45 Energy Generation 18 Energy Capacity 280 Matter Stores 300 Matter Capacity 300 Sight Range 22 Robot Scan Range 15 Terrain Scan Density 10 Cloak Strength 2 Armor Coverage 225 Resistance: TH 10 Power Shielding 66 Propulsion Shielding 66 Weapon Shielding 33 Evasion (%) 63 Targeting Accuracy 12 Recoil Reduction 3 Offensive Hacking 10 Item Schematics ----------------- None Robot Schematics ------------------ None Fabricated ------------ Nothing Repaired ---------- Arm. Treads | 4% | -8/Storage Gauss Rifle | 17% | -8/Storage Studied --------- Hvy. Assault Rifle | -8/Materials | Hacked Gauss Rifle | -8/Materials | Hacked Alien Tech Used ----------------- None Achievements -------------- None Challenges ------------ None Game ------ Seed WarpRelayMindspike Manual? 0 Play Time 01:10:58 Cumulative 148.9 hours Start 2026.08.02 @ 15:38:20 End 2026.08.02 @ 16:57:26 Sessions 1 Manual Loads 0 Difficulty Rogue Special Mode None Game No. 159 Rogue 105 Adventurer 54 Explorer 0 Win Type - Total 7 Types 3/0/1/1/0/0/0/1/0/1 Lore% 60 Gallery% 55 Achievement% 52 Wizard Run 0 Options --------- Layout 1 ASCII 0 Keyboard 0 Movement Mouse Keybinds 1 Fullscreen 2 Font 32/Tamsyn Map View 50x35 Zoom Use 0% Tactical HUD 1 Map Filters NONE Filters NONE Steam 1 RUN: a546d694-6216-4126-9010-ee8ac4284409